fUST/lending_fUST_20250522
["ID","MTS","AMOUNT","RATE_DAILY","PERIOD"]
[361964618,1747911051475,-555.5,0.00022465,2]
[361964619,1747911051485,-430.0,0.00022465,2]
[361964620,1747911051495,-407.69743656,0.00022465,2]
[361964621,1747911051504,-2107.08,0.00022465,2]
[361964622,1747911051513,-731.74,0.00022465,2]
[361964623,1747911051523,-430.0,0.00022465,2]
[361964624,1747911051532,-897.34,0.00022465,2]
[361964625,1747911051541,-430.0,0.00022465,2]
[361964626,1747911051552,-469.79,0.00022465,2]
[361964627,1747911051561,-529.41,0.00022465,2]
[361964628,1747911051570,-430.0,0.00022465,2]
[361964629,1747911051580,-430.0,0.00022465,2]
[361964630,1747911051590,-430.0,0.00022465,2]
[361964631,1747911051600,-430.0,0.00022465,2]
[361964632,1747911051610,-848.04,0.00022465,2]
[361964633,1747911051620,-430.0,0.00022465,2]
[361964634,1747911051629,-430.0,0.00022465,2]
[361964635,1747911051639,-430.0,0.00022465,2]
[361964636,1747911051648,-430.0,0.00022465,2]
[361964637,1747911051657,-430.0,0.00022465,2]
[361964638,1747911051667,-430.0,0.00022465,2]
[361964639,1747911051676,-3537.86,0.00022465,2]
[361964640,1747911051686,-430.0,0.00022465,2]
[361964641,1747911051696,-645.11,0.00022465,2]
[361964642,1747911051705,-430.0,0.00022465,2]
[361964643,1747911051715,-430.0,0.00022465,2]
[361964644,1747911051725,-430.0,0.00022465,2]
[361964645,1747911051734,-400.0,0.00022465,2]
[361964646,1747911051744,-400.0,0.00022465,2]
[361964647,1747911051753,-494.47,0.00022465,2]
[361964648,1747911051762,-400.0,0.00022465,2]
[361964649,1747911051772,-430.0,0.00022465,2]
[361964650,1747911051782,-551.42,0.00022465,2]
[361964651,1747911051791,-430.0,0.00022465,2]
[361964652,1747911051801,-1085.52,0.00022465,2]
[361964653,1747911051811,-44.01443539,0.00022465,2]
[361964654,1747911051981,-385.98556461,0.00022465,2]
[361964655,1747911051992,-400.0,0.00022465,2]
[361964656,1747911052001,-432.87,0.00022465,2]
[361964657,1747911052011,-1352.84,0.00022465,2]
[361964658,1747911052021,-767.91,0.00022465,2]
[361964659,1747911052031,-430.0,0.00022465,2]
[361964660,1747911052040,-673.59,0.00022465,2]
[361964661,1747911052050,-430.0,0.00022465,2]
[361964662,1747911052060,-430.0,0.00022465,2]
[361964663,1747911052070,-430.0,0.00022465,2]
[361964664,1747911052079,-430.0,0.00022465,2]
[361964665,1747911052088,-430.0,0.00022465,2]
[361964666,1747911052098,-430.0,0.00022465,2]
[361964667,1747911052111,-430.0,0.00022465,2]
[361964668,1747911052122,-430.0,0.00022465,2]
[361964669,1747911052132,-430.0,0.00022465,2]
[361964670,1747911052142,-667.3,0.00022465,2]
[361964671,1747911052151,-430.0,0.00022465,2]
[361964672,1747911052161,-500.0,0.00022486,2]
[361964673,1747911052171,-1000.0,0.00022521,2]
[361964674,1747911052180,-500.0,0.00022572,2]
[361964675,1747911052191,-641.48361164,0.00022624,7]
[361964676,1747911052203,-342.71483194,0.00022624,7]
[361964677,1747911052214,-500.0,0.00022639,2]
[361964678,1747911052224,-450.0,0.00022739,2]
[361964679,1747911052234,-431.21864434,0.00022739,2]
[361964680,1747911052243,-430.0,0.00022739,2]
[361964681,1747911052253,-430.0,0.00022739,2]
[361964682,1747911052262,-430.0,0.00022739,2]
[361964683,1747911052271,-430.0,0.00022739,2]
[361964684,1747911052281,-430.0,0.00022739,2]
[361964685,1747911052290,-430.0,0.00022739,2]
[361964686,1747911052300,-430.0,0.00022739,2]
[361964687,1747911052309,-430.0,0.00022739,2]
[361964688,1747911052318,-430.0,0.00022739,2]
[361964689,1747911052327,-430.0,0.00022739,2]
[361964690,1747911052337,-430.0,0.00022739,2]
[361964691,1747911052346,-430.0,0.00022739,2]
[361964692,1747911052355,-558.53,0.00022739,2]
[361964693,1747911052365,-430.0,0.00022739,2]
[361964694,1747911052374,-430.0,0.00022739,2]
[361964695,1747911052384,-430.0,0.00022739,2]
[361964696,1747911052393,-430.0,0.00022739,2]
[361964697,1747911052403,-430.0,0.00022739,2]
[361964698,1747911052412,-430.0,0.00022739,2]
[361964699,1747911052421,-510.38,0.00022739,2]
[361964700,1747911052431,-430.0,0.00022739,2]
[361964701,1747911052441,-430.0,0.00022739,2]
[361964702,1747911052450,-430.0,0.00022739,2]
[361964703,1747911052460,-430.0,0.00022739,2]
[361964704,1747911052469,-430.0,0.00022739,2]
[361964705,1747911052479,-430.0,0.00022739,2]
[361964706,1747911052587,-270.0,0.00022739,2]
[361964707,1747911052598,-430.0,0.00022739,2]
[361964708,1747911052608,-665.42,0.00022739,2]
[361964709,1747911052619,-656.88,0.00022739,2]
[361964710,1747911052628,-430.0,0.00022739,2]
[361964711,1747911052638,-301.99,0.00022739,2]
[361964712,1747911052647,-430.0,0.00022739,2]
[361964713,1747911052657,-430.0,0.00022739,2]
[361964714,1747911052667,-430.0,0.00022739,2]
[361964715,1747911052677,-430.0,0.00022739,2]
[361964716,1747911052686,-430.0,0.00022739,2]
[361964717,1747911052695,-430.0,0.00022739,2]
[361964718,1747911052705,-430.0,0.00022739,2]
[361964719,1747911052716,-430.0,0.00022739,2]
[361964720,1747911052726,-430.0,0.00022739,2]
[361964721,1747911052736,-430.0,0.00022739,2]
[361964722,1747911052746,-430.0,0.00022739,2]
[361964723,1747911052756,-430.0,0.00022739,2]
[361964724,1747911052765,-430.0,0.00022739,2]
[361964725,1747911052775,-430.0,0.00022739,2]
[361964726,1747911052784,-543.26,0.00022739,2]
[361964727,1747911052794,-430.0,0.00022739,2]
[361964728,1747911052803,-498.45,0.00022739,2]
[361964729,1747911052812,-430.0,0.00022739,2]
[361964730,1747911052822,-430.0,0.00022739,2]
[361964731,1747911052831,-594.89,0.00022739,2]
[361964732,1747911052841,-430.0,0.00022739,2]
[361964733,1747911052851,-430.0,0.00022739,2]
[361964734,1747911052861,-777.79,0.00022739,2]
[361964735,1747911052870,-3667.56,0.00022739,2]
[361964736,1747911052880,-470.0,0.00022739,2]
[361964737,1747911052890,-430.0,0.00022739,2]
[361964738,1747911052899,-1421.22,0.00022739,2]
[361964739,1747911052909,-430.0,0.00022739,2]
[361964740,1747911052919,-430.0,0.00022739,2]
[361964741,1747911052928,-400.0,0.00022739,2]
[361964742,1747911052938,-1133.96,0.00022739,2]
[361964743,1747911052949,-430.0,0.00022739,2]
[361964744,1747911052958,-430.0,0.00022739,2]
[361964745,1747911052968,-600.11,0.00022739,2]
[361964746,1747911052978,-430.0,0.00022739,2]
[361964747,1747911052988,-430.0,0.00022739,2]
[361964748,1747911052997,-586.34,0.00022739,2]
[361964749,1747911053008,-1327.49,0.00022739,2]
[361964750,1747911053018,-430.0,0.00022739,2]
[361964751,1747911053027,-430.0,0.00022739,2]
[361964752,1747911053038,-430.0,0.00022739,2]
[361964753,1747911053047,-430.0,0.00022739,2]
[361964754,1747911053057,-430.0,0.00022739,2]
[361964755,1747911053067,-1393.11,0.00022739,2]
[361964756,1747911053077,-430.0,0.00022739,2]
[361964757,1747911053089,-430.0,0.00022739,2]
[361964758,1747911053100,-430.0,0.00022739,2]
[361964759,1747911053113,-625.13,0.00022739,2]
[361964760,1747911053123,-430.0,0.00022739,2]
[361964761,1747911053132,-430.0,0.00022739,2]
[361964762,1747911053142,-430.0,0.00022739,2]
[361964763,1747911053153,-2362.04,0.00022739,2]
[361964764,1747911053163,-430.0,0.00022739,2]
[361964765,1747911053172,-430.0,0.00022739,2]
[361964766,1747911053182,-547.09890554,0.00022739,2]
[361964767,1747911053192,-603.54,0.00022739,2]
[361964768,1747911053203,-430.0,0.00022739,2]
[361964769,1747911053212,-430.0,0.00022739,2]
[361964770,1747911053222,-430.0,0.00022739,2]
[361964771,1747911053233,-1266.48,0.00022739,2]
[361964772,1747911053242,-430.0,0.00022739,2]
[361964773,1747911053252,-887.66,0.00022739,2]
[361964774,1747911053262,-430.0,0.00022739,2]
[361964775,1747911053271,-430.0,0.00022739,2]
[361964776,1747911053282,-927.04,0.00022739,2]
[361964777,1747911053291,-555.5,0.00022739,2]
[361964778,1747911053301,-430.0,0.00022739,2]
[361964779,1747911053310,-1328.15253534,0.00022739,2]
[361964780,1747911053328,-778.92746466,0.00022739,2]
[361964781,1747911053337,-731.74,0.00022739,2]
[361964782,1747911053347,-430.0,0.00022739,2]
[361964783,1747911053356,-897.34,0.00022739,2]
[361964784,1747911053366,-469.79,0.00022739,2]
[361964785,1747911053375,-529.41,0.00022739,2]
[361964786,1747911053385,-430.0,0.00022739,2]
[361964787,1747911053394,-848.04,0.00022739,2]
[361964788,1747911053404,-400.0,0.00022739,2]
[361964789,1747911053414,-430.0,0.00022739,2]
[361964790,1747911053424,-430.0,0.00022739,2]
[361964791,1747911053433,-234.69348868,0.00022739,2]
[361964792,1747911053699,-5000.0,0.00018913,2]
[361964793,1747911053709,-430.0,0.00021917,2]
[361964794,1747911053719,-430.0,0.00021917,2]
[361964795,1747911053728,-430.0,0.00021917,2]
[361964796,1747911053737,-430.0,0.00021917,2]
[361964797,1747911053746,-430.0,0.00021917,2]
[361964798,1747911053756,-430.0,0.00022191,2]
[361964799,1747911053765,-430.0,0.00022191,2]
[361964800,1747911053775,-430.0,0.00022191,2]
[361964801,1747911053784,-160.0,0.00022362,2]
[361964802,1747911053794,-430.0,0.00022465,2]
[361964803,1747911053804,-3303.16651132,0.00022739,2]
[361964804,1747911053814,-430.0,0.00022739,2]
[361964805,1747911053823,-430.0,0.00022739,2]
[361964806,1747911053832,-645.11,0.00022739,2]
[361964807,1747911053842,-430.0,0.00022739,2]
[361964808,1747911053851,-430.0,0.00022739,2]
[361964809,1747911053860,-494.47,0.00022739,2]
[361964810,1747911053870,-430.0,0.00022739,2]
[361964811,1747911053879,-551.42,0.00022739,2]
[361964812,1747911053889,-430.0,0.00022739,2]
[361964813,1747911053898,-1085.52,0.00022739,2]
[361964814,1747911053908,-430.0,0.00022739,2]
[361964815,1747911054013,-432.87,0.00022739,2]
[361964816,1747911054023,-1352.84,0.00022739,2]
[361964817,1747911054033,-767.91,0.00022739,2]
[361964818,1747911054043,-430.0,0.00022739,2]
[361964819,1747911054053,-673.59,0.00022739,2]
[361964820,1747911054063,-430.0,0.00022739,2]
[361964821,1747911054072,-430.0,0.00022739,2]
[361964822,1747911054082,-430.0,0.00022739,2]
[361964823,1747911054092,-430.0,0.00022739,2]
[361964824,1747911054102,-430.0,0.00022739,2]
[361964825,1747911054114,-360.74128868,0.00022739,2]
[361964826,1747911054235,-430.0,0.00021917,2]
[361964827,1747911054245,-430.0,0.00021917,2]
[361964828,1747911054254,-563.64835417,0.00021917,2]
[361964829,1747911054264,-430.0,0.00021917,2]
[361964830,1747911054273,-430.0,0.00022191,2]
[361964831,1747911054283,-430.0,0.00022191,2]
[361964832,1747911054294,-69.25871132,0.00022739,2]
[361964833,1747911054304,-430.0,0.00022739,2]
[361964834,1747911054315,-667.3,0.00022739,2]
[361964835,1747911054325,-430.0,0.00022739,2]
[361964836,1747911054334,-984.19844358,0.00022831,8]
[361964837,1747911054344,-670.25748449,0.0002285,2]
[361964838,1747911054354,-2063.78700178,0.00022976,2]
[361964839,1747911054371,-2748.185565,0.00022976,2]
[361964840,1747911054434,-0.11072089,0.00021917,2]
[361964841,1747911168456,-211.0,0.00017998,2]
[361964842,1747911221804,190.253195,0.00013699,2]
[361964845,1747912018305,-3602.0,0.00018711,2]
[361964896,1747912231978,-1415.8162618,0.00018413,2]
[361964931,1747912237611,-3584.1837382,0.00018413,2]
[361964933,1747912237623,-300.0,0.00018598,2]
[361964935,1747912237633,-300.0,0.00018599,2]
[361964937,1747912237643,-300.0,0.00018599,2]
[361964939,1747912237652,-1200.0,0.00018599,2]
[361964941,1747912237662,-12896.7358448,0.000186,2]
[361964943,1747912237671,-250.0,0.00018848,2]
[361964944,1747912237680,-2294.36626158,0.000189,2]
[361964946,1747912237689,-337.15870752,0.00019786,2]
[361964948,1747912237699,-500.0,0.00019847,2]
[361964950,1747912237708,-500.0,0.00019847,2]
[361964952,1747912237717,-338.00057367,0.00019847,2]
[361964954,1747912237727,-500.0,0.00019847,2]
[361964956,1747912237737,-500.0,0.00019847,2]
[361964958,1747912237747,-500.0,0.00019847,2]
[361964960,1747912237757,-500.0,0.00019847,2]
[361964962,1747912237767,-500.0,0.00019847,2]
[361964964,1747912237776,-500.0,0.00019847,2]
[361964965,1747912237786,-500.0,0.00019847,2]
[361964967,1747912237795,-500.0,0.00019847,2]
[361964968,1747912237804,-500.0,0.00019847,2]
[361964969,1747912237814,-500.0,0.00019847,2]
[361964970,1747912237824,-500.0,0.00019847,2]
[361964972,1747912237833,-528.72834008,0.00019847,2]
[361964974,1747912237843,-500.0,0.00019847,2]
[361964976,1747912237853,-500.0,0.00019847,2]
[361964978,1747912237863,-500.0,0.00019847,2]
[361964980,1747912237872,-500.0,0.00019847,2]
[361964982,1747912237881,-500.0,0.00019847,2]
[361964983,1747912237890,-500.0,0.00019847,2]
[361964984,1747912237905,-500.0,0.00019847,2]
[361964985,1747912237915,-500.0,0.00019847,2]
[361964986,1747912237925,-500.0,0.00019847,2]
[361964987,1747912237935,-500.0,0.00019847,2]
[361964988,1747912237946,-486.73808765,0.00019847,2]
[361964989,1747912237955,-500.0,0.00019847,2]
[361964990,1747912238108,-500.0,0.00019847,2]
[361964991,1747912238118,-500.0,0.00019847,2]
[361964992,1747912238128,-24900.0,0.00019849,2]
[361964993,1747912238138,-531.23620001,0.00019949,2]
[361964994,1747912238147,-234.007874,0.0001995,2]
[361964995,1747912238158,-190.253195,0.00020187,2]
[361964996,1747912238167,-157.89,0.00020225,2]
[361964997,1747912238177,-538.1291297,0.00020227,2]
[361964998,1747912238187,-166.0,0.00020274,2]
[361964999,1747912238197,-420.0,0.0002028,2]
[361965000,1747912238207,-420.0,0.00020281,2]
[361965001,1747912238216,-420.0,0.00020281,2]
[361965002,1747912238226,-1680.0,0.0002038,2]
[361965003,1747912238236,-176.735029,0.00020505,2]
[361965004,1747912238245,-530.662293,0.00020745,2]
[361965005,1747912238255,-5172.88299586,0.000209,4]
[361965006,1747912238264,-894.64583333,0.00021,3]
[361965007,1747912238274,-5172.88299583,0.00021038,4]
[361965008,1747912238283,-5172.88299583,0.00021176,4]
[361965009,1747912238292,-5172.88299583,0.00021314,5]
[361965010,1747912238303,-5172.88299583,0.00021452,5]
[361965011,1747912238312,-1000.0,0.00021543,2]
[361965012,1747912238322,-5172.88299583,0.0002159,5]
[361965013,1747912238331,-300.3607564,0.00021625,2]
[361965014,1747912238341,-5172.88299583,0.00021728,5]
[361965015,1747912238353,-296.47015038,0.00021817,2]
[361965016,1747912238362,-5172.88299583,0.00021866,6]
[361965017,1747912238372,-2248.0,0.00021899,3]
[361965018,1747912238381,-240.333,0.00021915,2]
[361965019,1747912238391,-178.555,0.00021915,2]
[361965020,1747912238402,-500.0,0.00021916,2]
[361965021,1747912238411,-500.0,0.00021916,2]
[361965022,1747912238422,-500.0,0.00021916,2]
[361965023,1747912238431,-500.0,0.00021916,2]
[361965024,1747912238441,-402.16234582,0.00021916,2]
[361965025,1747912238450,-500.0,0.00021916,2]
[361965026,1747912238460,-500.0,0.00021916,2]
[361965027,1747912238469,-500.0,0.00021916,2]
[361965028,1747912238481,-408.51980261,0.00021916,2]
[361965029,1747912238491,-500.0,0.00021916,2]
[361965030,1747912238500,-500.0,0.00021916,2]
[361965031,1747912238510,-500.0,0.00021916,2]
[361965032,1747912238520,-500.0,0.00021916,2]
[361965033,1747912238531,-500.0,0.00021916,2]
[361965034,1747912238543,-500.0,0.00021916,2]
[361965035,1747912238554,-500.0,0.00021916,2]
[361965036,1747912238563,-168.058774,0.00021916,2]
[361965037,1747912238574,-450.0,0.00021916,2]
[361965038,1747912238584,-243.00198354,0.00021917,2]
[361965039,1747912238594,-420.0,0.00021917,2]
[361965040,1747912238605,-430.0,0.00021917,2]
[361965041,1747912238615,-430.0,0.00021917,2]
[361965042,1747912238626,-430.0,0.00021917,2]
[361965043,1747912238635,-430.0,0.00021917,2]
[361965044,1747912238646,-430.0,0.00021917,2]
[361965045,1747912238655,-430.0,0.00021917,2]
[361965046,1747912238665,-430.0,0.00021917,2]
[361965047,1747912238674,-150.6844708,0.00021917,2]
[361965048,1747912238684,-450.0,0.00021917,2]
[361965049,1747912238694,-430.0,0.00021917,2]
[361965050,1747912238704,-450.0,0.00021917,2]
[361965051,1747912238715,-430.0,0.00021917,2]
[361965052,1747912238724,-430.0,0.00021917,2]
[361965053,1747912238734,-450.0,0.00021917,2]
[361965054,1747912238744,-400.0,0.00021917,2]
[361965055,1747912238753,-430.0,0.00021917,2]
[361965056,1747912238763,-430.65906915,0.00021917,2]
[361965057,1747912238773,-430.0,0.00021917,2]
[361965058,1747912238783,-430.0,0.00021917,2]
[361965059,1747912238793,-400.0,0.00021917,2]
[361965060,1747912238803,-442.41891775,0.00021917,2]
[361965061,1747912238813,-430.0,0.00021917,2]
[361965062,1747912238823,-430.0,0.00021917,2]
[361965063,1747912238834,-430.0,0.00021917,2]
[361965064,1747912238844,-164.74913287,0.00021917,2]
[361965065,1747912238855,-450.87117552,0.00021917,2]
[361965066,1747912238865,-430.0,0.00021917,2]
[361965067,1747912238874,-430.0,0.00021917,2]
[361965068,1747912238884,-450.0,0.00021917,2]
[361965069,1747912238893,-430.0,0.00021917,2]
[361965070,1747912238903,-430.0,0.00021917,2]
[361965071,1747912238913,-430.0,0.00021917,2]
[361965072,1747912238923,-400.86206516,0.00021917,2]
[361965073,1747912238933,-430.0,0.00021917,2]
[361965074,1747912238943,-430.0,0.00021917,2]
[361965075,1747912238954,-430.0,0.00021917,2]
[361965076,1747912238964,-430.0,0.00021917,2]
[361965077,1747912238975,-400.63538985,0.00021917,2]
[361965078,1747912238985,-450.37607868,0.00021917,2]
[361965079,1747912238995,-430.0,0.00021917,2]
[361965080,1747912239006,-430.0,0.00021917,2]
[361965081,1747912239016,-430.0,0.00021917,2]
[361965082,1747912239027,-400.0,0.00021917,2]
[361965083,1747912239036,-430.0,0.00021917,2]
[361965084,1747912239047,-401.38330337,0.00021917,2]
[361965085,1747912239057,-400.0,0.00021917,2]
[361965086,1747912239067,-430.0,0.00021917,2]
[361965087,1747912239077,-430.0,0.00021917,2]
[361965088,1747912239087,-400.0,0.00021917,2]
[361965089,1747912239096,-450.0,0.00021917,2]
[361965090,1747912239107,-450.45096219,0.00021917,2]
[361965091,1747912239116,-430.0,0.00021917,2]
[361965092,1747912239126,-430.0,0.00021917,2]
[361965093,1747912239135,-450.0,0.00021917,2]
[361965094,1747912239146,-400.0,0.00021917,2]
[361965095,1747912239156,-430.0,0.00021917,2]
[361965096,1747912239166,-430.0,0.00021917,2]
[361965097,1747912239176,-430.0,0.00021917,2]
[361965098,1747912239186,-400.62566055,0.00021917,2]
[361965099,1747912239196,-430.0,0.00021917,2]
[361965100,1747912239206,-430.0,0.00021917,2]
[361965101,1747912239215,-430.0,0.00021917,2]
[361965103,1747912239225,-430.0,0.00021917,2]
[361965105,1747912239235,-430.0,0.00021917,2]
[361965107,1747912239245,-400.0,0.00021917,2]
[361965109,1747912239255,-430.0,0.00021917,2]
[361965111,1747912239265,-430.0,0.00021917,2]
[361965113,1747912239275,-400.53216153,0.00021917,2]
[361965115,1747912239286,-450.0,0.00021917,2]
[361965117,1747912239296,-430.0,0.00021917,2]
[361965119,1747912239306,-430.0,0.00021917,2]
[361965121,1747912239316,-450.50554544,0.00021917,2]
[361965123,1747912239325,-430.0,0.00021917,2]
[361965125,1747912239335,-271.98026035,0.00021917,2]
[361965127,1747912239345,-430.0,0.00021917,2]
[361965129,1747912239355,-430.0,0.00021917,2]
[361965131,1747912239365,-430.0,0.00021917,2]
[361965133,1747912239376,-430.0,0.00021917,2]
[361965137,1747912239398,-430.0,0.00021917,2]
[361965140,1747912239410,-430.0,0.00021917,2]
[361965142,1747912239421,-430.0,0.00021917,2]
[361965144,1747912239430,-430.0,0.00021917,2]
[361965146,1747912239442,-430.0,0.00021917,2]
[361965148,1747912239452,-502.27617982,0.00021917,2]
[361965150,1747912239463,-430.0,0.00021917,2]
[361965152,1747912239474,-450.0,0.00021917,2]
[361965155,1747912239484,-430.0,0.00021917,2]
[361965157,1747912239494,-430.0,0.00021917,2]
[361965159,1747912239505,-430.0,0.00021917,2]
[361965161,1747912239515,-430.0,0.00021917,2]
[361965163,1747912239525,-430.0,0.00021917,2]
[361965165,1747912239537,-430.0,0.00021917,2]
[361965167,1747912239547,-430.0,0.00021917,2]
[361965169,1747912239559,-362.79410507,0.00021917,2]
[361965171,1747912239569,-430.0,0.00021917,2]
[361965173,1747912239582,-206.73654446,0.00021917,2]
[361965175,1747912239592,-430.0,0.00021917,2]
[361965178,1747912239603,-430.0,0.00021917,2]
[361965181,1747912239613,-450.0,0.00021917,2]
[361965184,1747912239625,-451.24494781,0.00021917,2]
[361965188,1747912239635,-450.0,0.00021917,2]
[361965191,1747912239645,-430.0,0.00021917,2]
[361965194,1747912239655,-430.0,0.00021917,2]
[361965197,1747912239665,-430.0,0.00021917,2]
[361965200,1747912239676,-430.0,0.00021917,2]
[361965203,1747912239686,-430.0,0.00021917,2]
[361965206,1747912239696,-350.0,0.00021917,2]
[361965209,1747912239706,-430.0,0.00021917,2]
[361965212,1747912239717,-351.03255134,0.00021917,2]
[361965215,1747912239727,-450.0,0.00021917,2]
[361965218,1747912239737,-430.0,0.00021917,2]
[361965221,1747912239747,-430.0,0.00021917,2]
[361965224,1747912239757,-400.0,0.00021917,2]
[361965228,1747912239768,-430.0,0.00021917,2]
[361965232,1747912239777,-430.0,0.00021917,2]
[361965234,1747912239787,-450.0,0.00021917,2]
[361965238,1747912239798,-450.0,0.00021917,2]
[361965241,1747912239807,-430.0,0.00021917,2]
[361965244,1747912239817,-500.84550072,0.00021917,2]
[361965247,1747912239827,-430.0,0.00021917,2]
[361965250,1747912239837,-430.0,0.00021917,2]
[361965253,1747912239847,-430.0,0.00021917,2]
[361965255,1747912239859,-430.0,0.00021917,2]
[361965257,1747912239869,-430.0,0.00021917,2]
[361965259,1747912239878,-430.0,0.00021917,2]
[361965262,1747912239889,-432.42025184,0.00021917,2]
[361965266,1747912239899,-350.0,0.00021917,2]
[361965269,1747912239909,-430.0,0.00021917,2]
[361965272,1747912239919,-430.0,0.00021917,2]
[361965275,1747912239928,-430.0,0.00021917,2]
[361965278,1747912239938,-402.74064186,0.00021917,2]
[361965281,1747912239948,-401.39318919,0.00021917,2]
[361965285,1747912239959,-430.0,0.00021917,2]
[361965288,1747912239969,-430.0,0.00021917,2]
[361965291,1747912239979,-430.0,0.00021917,2]
[361965294,1747912239989,-344.82727651,0.00021917,2]
[361965297,1747912239999,-430.0,0.00021917,2]
[361965301,1747912240014,-430.0,0.00021917,2]
[361965304,1747912240023,-430.0,0.00021917,2]
[361965307,1747912240034,-430.0,0.00021917,2]
[361965310,1747912240044,-430.0,0.00021917,2]
[361965312,1747912240054,-451.44909909,0.00021917,2]
[361965315,1747912240064,-430.0,0.00021917,2]
[361965335,1747912240224,-430.0,0.00021917,2]
[361965338,1747912240234,-534.95,0.00021917,2]
[361965340,1747912240244,-430.0,0.00021917,2]
[361965342,1747912240255,-430.0,0.00021917,2]
[361965344,1747912240264,-450.0,0.00021917,2]
[361965346,1747912240274,-450.0,0.00021917,2]
[361965348,1747912240284,-419.34525243,0.00021917,2]
[361965350,1747912240293,-430.0,0.00021917,2]
[361965352,1747912240303,-762.73,0.00021917,2]
[361965354,1747912240313,-430.0,0.00021917,2]
[361965356,1747912240323,-430.0,0.00021917,2]
[361965358,1747912240333,-400.78012797,0.00021917,2]
[361965360,1747912240342,-430.0,0.00021917,2]
[361965362,1747912240352,-430.0,0.00021917,2]
[361965364,1747912240363,-430.0,0.00021917,2]
[361965366,1747912240372,-430.0,0.00021917,2]
[361965368,1747912240382,-430.0,0.00021917,2]
[361965370,1747912240391,-430.0,0.00021917,2]
[361965372,1747912240401,-402.0455979,0.00021917,2]
[361965374,1747912240410,-430.0,0.00021917,2]
[361965376,1747912240421,-300.0,0.00021917,2]
[361965378,1747912240431,-430.0,0.00021917,2]
[361965381,1747912240441,-430.0,0.00021917,2]
[361965383,1747912240451,-430.0,0.00021917,2]
[361965385,1747912240461,-430.0,0.00021917,2]
[361965387,1747912240471,-450.0,0.00021917,2]
[361965389,1747912240480,-180.61793824,0.00021917,2]
[361965391,1747912240490,-166.73815685,0.00021917,2]
[361965393,1747912240499,-430.0,0.00021917,2]
[361965395,1747912240509,-430.0,0.00021917,2]
[361965397,1747912240518,-430.0,0.00021917,2]
[361965399,1747912240528,-430.0,0.00021917,2]
[361965401,1747912240538,-430.0,0.00021917,2]
[361965403,1747912240551,-1210.22,0.00021917,2]
[361965405,1747912240561,-430.0,0.00021917,2]
[361965407,1747912240571,-430.0,0.00021917,2]
[361965409,1747912240581,-391.93023438,0.00021917,2]
[361965411,1747912240591,-430.0,0.00021917,2]
[361965413,1747912240601,-314.47709477,0.00021917,2]
[361965415,1747912240610,-350.0,0.00021917,2]
[361965417,1747912240622,-430.0,0.00021917,2]
[361965419,1747912240631,-350.0,0.00021917,2]
[361965420,1747912240642,-385.74248677,0.00021917,2]
[361965421,1747912240652,-430.0,0.00021917,2]